fUSD/lending_fUSD_20241111
["ID","MTS","AMOUNT","RATE_DAILY","PERIOD"]
[341992944,1731348632619,-200.0,0.000137,2]
[341992945,1731348632628,-1043.27897639,0.0001372,2]
[341992946,1731348632638,-1129.2696441,0.0001372,2]
[341992947,1731348632647,-167.71,0.00013737,2]
[341992948,1731348632656,-150.0,0.00013747,2]
[341992949,1731348632666,-374.5752,0.000138,2]
[341992950,1731348632675,-1301.2541,0.000138,2]
[341992951,1731348632685,-1028.5715289,0.000138,2]
[341992952,1731348632694,-1028.5715289,0.00013811,2]
[341992953,1731348632702,-1028.5715289,0.00013822,2]
[341992954,1731348632713,-1028.5715289,0.00013833,2]
[341992955,1731348632722,-1028.5715289,0.00013844,2]
[341992956,1731348632731,-1028.5715289,0.00013856,2]
[341992957,1731348632740,-1028.5715289,0.00013867,2]
[341992958,1731348632751,-1379.81316161,0.00013867,2]
[341992959,1731348632760,-500.28410102,0.00013877,2]
[341992960,1731348632769,-500.84772497,0.00013877,2]
[341992961,1731348632779,-500.0,0.00013877,2]
[341992962,1731348632788,-500.0,0.00013877,2]
[341992963,1731348632797,-500.0,0.00013877,2]
[341992964,1731348632806,-500.0,0.00013877,2]
[341992965,1731348632815,-500.0,0.00013877,2]
[341992966,1731348632824,-500.0,0.00013877,2]
[341992967,1731348632833,-500.0,0.00013877,2]
[341992968,1731348632842,-500.0,0.00013877,2]
[341992969,1731348632851,-500.0,0.00013877,2]
[341992970,1731348632860,-500.0,0.00013877,2]
[341992971,1731348632869,-500.0,0.00013877,2]
[341992972,1731348632878,-500.0,0.00013877,2]
[341992973,1731348632887,-500.0,0.00013877,2]
[341992974,1731348632896,-500.0,0.00013877,2]
[341992975,1731348632905,-500.0,0.00013877,2]
[341992976,1731348632914,-150.0,0.00013877,2]
[341992977,1731348632923,-500.0,0.00013877,2]
[341992978,1731348632932,-500.0,0.00013877,2]
[341992979,1731348632941,-389.54383088,0.00013877,2]
[341992980,1731348632950,-500.0,0.00013877,2]
[341992981,1731348632960,-500.0,0.00013877,2]
[341992982,1731348632969,-500.0,0.00013877,2]
[341992983,1731348632978,-500.0,0.00013877,2]
[341992984,1731348632987,-500.0,0.00013877,2]
[341992985,1731348632996,-500.0,0.00013877,2]
[341992986,1731348633005,-500.0,0.00013877,2]
[341992987,1731348633014,-500.0,0.00013877,2]
[341992988,1731348633023,-710.18865124,0.00013878,2]
[341992989,1731348633035,-318.38287766,0.00013878,2]
[341992990,1731348633044,-159.21,0.00013879,2]
[341992991,1731348633052,-386.77,0.00013879,2]
[341992992,1731348633061,-500.0,0.00013879,2]
[341992993,1731348633070,-275.71,0.00013879,2]
[341992994,1731348633079,-500.0,0.00013879,2]
[341992995,1731348633088,-500.0,0.00013879,2]
[341992996,1731348633097,-500.0,0.00013879,2]
[341992997,1731348633106,-500.0,0.00013879,2]
[341992998,1731348633115,-1028.5715289,0.00013889,2]
[341992999,1731348633124,-385.78768991,0.00013889,2]
[341993000,1731348633133,-2372.27558354,0.0001389,2]
[341993001,1731348633144,-757.02661174,0.0001389,2]
[341993006,1731348638104,-1578.64,0.00012701,2]
[341993007,1731348638113,-1363.52,0.0001307,2]
[341993008,1731348638122,-1122.54777751,0.00013612,2]
[341993009,1731348638131,-44233.02190472,0.0001389,2]
[341993010,1731348638140,-385.78768989,0.00013891,2]
[341993011,1731348638149,-385.78768989,0.00013892,2]
[341993012,1731348638157,-385.78768989,0.00013894,2]
[341993013,1731348638166,-385.78768989,0.00013895,2]
[341993014,1731348638175,-385.78768989,0.00013897,2]
[341993015,1731348638184,-385.78768989,0.00013898,2]
[341993016,1731348638194,-1235.88824415,0.00013899,2]
[341993017,1731348638427,-5771.51745585,0.00013899,2]
[341993018,1731348638437,-742.5,0.00013899,2]
[341993019,1731348638445,-217.31684563,0.00013899,2]
[341993020,1731348638454,-500.0,0.00013899,2]
[341993021,1731348638463,-500.0,0.00013899,2]
[341993022,1731348638472,-500.0,0.00013899,2]
[341993023,1731348638480,-500.0,0.00013899,2]
[341993024,1731348638489,-8143.91569852,0.000139,2]
[341993025,1731348638500,-674.68,0.000139,2]
[341993026,1731348638511,-1588.15650148,0.000139,2]
[341993027,1731348638519,-4750.7283,0.000139,2]
[341993028,1731348638528,-188.4874,0.000139,2]
[341993029,1731348638537,-1000.0,0.000139,2]
[341993030,1731348638546,-25645.5811,0.000139,2]
[341993031,1731348638555,-1507.0815,0.000139,2]
[341993032,1731348638564,-126623.0,0.000139,2]
[341993033,1731348638572,-152.90970432,0.000139,2]
[341993034,1731348638581,-152.90970432,0.000139,2]
[341993035,1731348638592,-152.90970432,0.000139,2]
[341993036,1731348638600,-152.90970432,0.000139,2]
[341993037,1731348638609,-152.90970432,0.000139,2]
[341993038,1731348638618,-152.90970432,0.000139,2]
[341993039,1731348638626,-152.90970432,0.000139,2]
[341993040,1731348638637,-152.90970432,0.000139,2]
[341993042,1731348638645,-152.90970432,0.000139,2]
[341993044,1731348638654,-152.90970432,0.000139,2]
[341993046,1731348638664,-152.90970432,0.000139,2]
[341993048,1731348638673,-152.90970432,0.000139,2]
[341993049,1731348638682,-152.90970432,0.000139,2]
[341993051,1731348638695,-152.90970432,0.000139,2]
[341993053,1731348638705,-152.90970432,0.000139,2]
[341993055,1731348638713,-152.90970432,0.000139,2]
[341993057,1731348638722,-152.9,0.000139,2]
[341993059,1731348638731,-155.45469238,0.000139,2]
[341993061,1731348638739,-385.78768989,0.000139,2]
[341993063,1731348638748,-1028.5715289,0.000139,2]
[341993065,1731348638758,-1000.0,0.000139,2]
[341993067,1731348638767,-1063.77655004,0.00013961,2]
[341993069,1731348638776,-1018.60150597,0.00013961,2]
[341993071,1731348638785,-503.47729629,0.00013973,2]
[341993073,1731348638794,-180.09165227,0.0001398,2]
[341993075,1731348638802,-6795.7993801,0.00013989,2]
[341993077,1731348638811,-3280.7020963,0.00013989,2]
[341993079,1731348638820,-32771.82561362,0.0001399,2]
[341993081,1731348638829,-500.0,0.00013997,2]
[341993083,1731348638838,-618.7,0.00013998,2]
[341993085,1731348638846,-500.0,0.00013998,2]
[341993087,1731348638855,-500.0,0.00013998,2]
[341993089,1731348638864,-357.42,0.00013998,2]
[341993091,1731348638873,-429.79969574,0.00013998,2]
[341993093,1731348638881,-500.0,0.00013998,2]
[341993095,1731348638890,-500.0,0.00013998,2]
[341993097,1731348638899,-567.59097354,0.00013999,2]
[341993099,1731348638907,-500.0,0.00013999,2]
[341993101,1731348638916,-500.0,0.00013999,2]
[341993103,1731348638925,-500.0,0.00013999,2]
[341993105,1731348638933,-500.0,0.00013999,2]
[341993107,1731348638944,-500.0,0.00013999,2]
[341993109,1731348638953,-500.0,0.00013999,2]
[341993111,1731348638962,-500.0,0.00013999,2]
[341993113,1731348638970,-500.0,0.00013999,2]
[341993115,1731348638979,-500.0,0.00013999,2]
[341993117,1731348638988,-500.0,0.00013999,2]
[341993118,1731348638996,-152.43304659,0.00013999,2]
[341993120,1731348639005,-500.0,0.00013999,2]
[341993122,1731348639014,-343.60270829,0.00013999,2]
[341993124,1731348639023,-304.90497284,0.00013999,2]
[341993126,1731348639031,-500.0,0.00013999,2]
[341993128,1731348639040,-500.0,0.00013999,2]
[341993130,1731348639048,-500.0,0.00013999,2]
[341993132,1731348639057,-500.0,0.00013999,2]
[341993134,1731348639066,-500.0,0.00013999,2]
[341993136,1731348639075,-500.0,0.00013999,2]
[341993138,1731348639084,-500.0,0.00013999,2]
[341993140,1731348639093,-500.0,0.00013999,2]
[341993142,1731348639101,-500.0,0.00013999,2]
[341993144,1731348639110,-500.0,0.00013999,2]
[341993146,1731348639119,-500.0,0.00013999,2]
[341993148,1731348639127,-500.0,0.00013999,2]
[341993150,1731348639136,-561.63,0.00013999,2]
[341993152,1731348639145,-500.0,0.00013999,2]
[341993154,1731348639154,-500.0,0.00013999,2]
[341993156,1731348639163,-500.0,0.00013999,2]
[341993158,1731348639172,-500.0,0.00013999,2]
[341993160,1731348639180,-500.0,0.00013999,2]
[341993162,1731348639191,-172.70683609,0.00013999,2]
[341993164,1731348639200,-500.0,0.00013999,2]
[341993166,1731348639209,-441.66925827,0.00013999,2]
[341993168,1731348639218,-500.0,0.00013999,2]
[341993170,1731348639226,-500.0,0.00013999,2]
[341993172,1731348639237,-500.0,0.00013999,2]
[341993174,1731348639245,-465.60266883,0.00013999,2]
[341993176,1731348639255,-500.0,0.00013999,2]
[341993178,1731348639263,-500.0,0.00013999,2]
[341993180,1731348639272,-500.0,0.00013999,2]
[341993182,1731348639281,-500.0,0.00013999,2]
[341993184,1731348639290,-500.0,0.00013999,2]
[341993186,1731348639298,-500.0,0.00013999,2]
[341993187,1731348639307,-500.0,0.00013999,2]
[341993189,1731348639316,-500.0,0.00013999,2]
[341993191,1731348639324,-500.0,0.00013999,2]
[341993193,1731348639333,-500.0,0.00013999,2]
[341993195,1731348639342,-500.0,0.00013999,2]
[341993197,1731348639353,-500.0,0.00013999,2]
[341993199,1731348639362,-500.0,0.00013999,2]
[341993201,1731348639372,-500.0,0.00013999,2]
[341993203,1731348639381,-500.0,0.00013999,2]
[341993205,1731348639391,-500.0,0.00013999,2]
[341993207,1731348639400,-500.0,0.00013999,2]
[341993209,1731348639409,-500.0,0.00013999,2]
[341993211,1731348639418,-500.0,0.00013999,2]
[341993213,1731348639427,-500.0,0.00013999,2]
[341993215,1731348639438,-500.0,0.00013999,2]
[341993217,1731348639447,-500.0,0.00013999,2]
[341993219,1731348639456,-305.98,0.00013999,2]
[341993221,1731348639466,-500.0,0.00013999,2]
[341993223,1731348639476,-500.0,0.00013999,2]
[341993225,1731348639485,-500.0,0.00013999,2]
[341993227,1731348639494,-500.0,0.00013999,2]
[341993229,1731348639503,-500.0,0.00013999,2]
[341993231,1731348639512,-500.0,0.00013999,2]
[341993233,1731348639521,-500.0,0.00013999,2]
[341993235,1731348639530,-500.0,0.00013999,2]
[341993237,1731348639539,-500.0,0.00013999,2]
[341993239,1731348639547,-500.0,0.00013999,2]
[341993241,1731348639556,-500.0,0.00013999,2]
[341993243,1731348639565,-500.0,0.00013999,2]
[341993245,1731348639574,-500.0,0.00013999,2]
[341993247,1731348639585,-500.0,0.00013999,2]
[341993249,1731348639596,-500.0,0.00013999,2]
[341993251,1731348639604,-500.0,0.00013999,2]
[341993253,1731348639613,-500.0,0.00013999,2]
[341993255,1731348639622,-500.0,0.00013999,2]
[341993257,1731348639630,-500.0,0.00013999,2]
[341993259,1731348639639,-500.0,0.00013999,2]
[341993260,1731348639648,-500.0,0.00013999,2]
[341993262,1731348639656,-500.0,0.00013999,2]
[341993264,1731348639665,-500.0,0.00013999,2]
[341993266,1731348639674,-500.0,0.00013999,2]
[341993268,1731348639683,-500.0,0.00013999,2]
[341993270,1731348639694,-500.0,0.00013999,2]
[341993272,1731348639703,-500.0,0.00013999,2]
[341993274,1731348639712,-500.0,0.00013999,2]
[341993276,1731348639721,-500.0,0.00013999,2]
[341993278,1731348639729,-500.0,0.00013999,2]
[341993280,1731348639739,-500.0,0.00013999,2]
[341993282,1731348639747,-435.82,0.00013999,2]
[341993284,1731348639756,-500.0,0.00013999,2]
[341993286,1731348639765,-500.0,0.00013999,2]
[341993288,1731348639774,-308.15379712,0.00013999,2]
[341993290,1731348639783,-500.0,0.00013999,2]
[341993292,1731348639792,-500.0,0.00013999,2]
[341993294,1731348639801,-500.0,0.00013999,2]
[341993296,1731348639809,-500.0,0.00013999,2]
[341993298,1731348639818,-500.0,0.00013999,2]
[341993300,1731348639827,-500.0,0.00013999,2]
[341993301,1731348639836,-500.0,0.00013999,2]
[341993303,1731348639844,-500.0,0.00013999,2]
[341993305,1731348639854,-500.0,0.00013999,2]
[341993307,1731348639863,-500.0,0.00013999,2]
[341993309,1731348639872,-500.0,0.00013999,2]
[341993311,1731348639881,-1468.15,0.00013999,2]
[341993313,1731348639890,-1468.15,0.00013999,2]
[341993315,1731348639898,-1468.15,0.00013999,2]
[341993317,1731348639907,-1468.15,0.00013999,2]
[341993319,1731348639916,-1468.15,0.00013999,2]
[341993321,1731348639925,-1468.15,0.00013999,2]
[341993323,1731348639934,-1468.15,0.00013999,2]
[341993325,1731348639945,-1468.15,0.00013999,2]
[341993327,1731348639954,-1468.15,0.00013999,2]
[341993329,1731348639963,-1468.15,0.00013999,2]
[341993331,1731348639971,-1468.15,0.00013999,2]
[341993333,1731348639980,-1468.15,0.00013999,2]
[341993335,1731348639989,-1468.15,0.00013999,2]
[341993338,1731348639999,-1468.15,0.00013999,2]
[341993340,1731348640008,-1468.15,0.00013999,2]
[341993342,1731348640016,-1468.15,0.00013999,2]
[341993344,1731348640025,-1468.15,0.00013999,2]
[341993346,1731348640034,-1468.15,0.00013999,2]
[341993348,1731348640043,-1468.15,0.00013999,2]
[341993350,1731348640052,-1468.15,0.00013999,2]
[341993352,1731348640061,-1468.15,0.00013999,2]
[341993354,1731348640070,-1468.15,0.00013999,2]
[341993356,1731348640079,-1468.15,0.00013999,2]
[341993358,1731348640087,-1468.26492022,0.00013999,2]
[341993360,1731348640096,-500.0,0.00013999,2]
[341993362,1731348640105,-500.0,0.00013999,2]
[341993364,1731348640114,-500.0,0.00013999,2]
[341993366,1731348640122,-500.0,0.00013999,2]
[341993368,1731348640131,-500.0,0.00013999,2]
[341993370,1731348640140,-500.0,0.00013999,2]
[341993372,1731348640148,-500.0,0.00013999,2]
[341993374,1731348640157,-500.0,0.00013999,2]
[341993375,1731348640166,-500.0,0.00013999,2]
[341993377,1731348640175,-500.0,0.00013999,2]
[341993379,1731348640184,-500.0,0.00013999,2]
[341993381,1731348640196,-500.0,0.00013999,2]
[341993384,1731348640205,-500.0,0.00013999,2]
[341993386,1731348640214,-500.0,0.00013999,2]
[341993387,1731348640223,-500.0,0.00013999,2]
[341993389,1731348640231,-413.68596004,0.00013999,2]
[341993391,1731348640240,-348.90111361,0.00013999,2]
[341993393,1731348640249,-500.0,0.00013999,2]
[341993395,1731348640258,-500.0,0.00013999,2]
[341993397,1731348640267,-266.01316391,0.00013999,2]
[341993399,1731348640275,-460.27302677,0.00013999,2]
[341993401,1731348640284,-500.0,0.00013999,2]
[341993403,1731348640293,-500.0,0.00013999,2]
[341993405,1731348640302,-500.0,0.00013999,2]
[341993407,1731348640311,-500.0,0.00013999,2]
[341993409,1731348640319,-500.0,0.00013999,2]
[341993411,1731348640328,-500.0,0.00013999,2]
[341993413,1731348640337,-500.0,0.00013999,2]
[341993415,1731348640346,-500.0,0.00013999,2]
[341993417,1731348640355,-500.0,0.00013999,2]
[341993419,1731348640363,-500.0,0.00013999,2]
[341993421,1731348640372,-500.0,0.00013999,2]
[341993423,1731348640381,-500.0,0.00013999,2]
[341993425,1731348640389,-469.82525523,0.00013999,2]
[341993427,1731348640398,-500.0,0.00013999,2]
[341993429,1731348640407,-500.0,0.00013999,2]
[341993431,1731348640416,-500.0,0.00013999,2]
[341993433,1731348640425,-500.0,0.00013999,2]
[341993435,1731348640434,-500.0,0.00013999,2]
[341993437,1731348640445,-500.0,0.00013999,2]
[341993439,1731348640454,-500.0,0.00013999,2]
[341993441,1731348640463,-399.87616755,0.00013999,2]
[341993443,1731348640472,-1125.0,0.00013999,2]
[341993445,1731348640481,-500.0,0.00013999,2]
[341993447,1731348640490,-500.0,0.00013999,2]
[341993449,1731348640499,-500.0,0.00013999,2]
[341993451,1731348640508,-500.0,0.00013999,2]
[341993453,1731348640516,-500.0,0.00013999,2]
[341993455,1731348640525,-500.0,0.00013999,2]
[341993456,1731348640534,-500.0,0.00013999,2]
[341993458,1731348640543,-500.0,0.00013999,2]
[341993460,1731348640551,-500.0,0.00013999,2]
[341993462,1731348640560,-500.0,0.00013999,2]
[341993464,1731348640569,-547.47478416,0.00013999,2]
[341993466,1731348640578,-500.0,0.00013999,2]
[341993468,1731348640589,-500.0,0.00013999,2]
[341993470,1731348640598,-193.78164279,0.00013999,2]
[341993472,1731348640607,-1122.87009362,0.00013999,2]
[341993474,1731348640615,-23822.49290358,0.00014,2]
[341993476,1731348640624,-1374029.27687493,0.00014,2]
[341993478,1731348640633,-1156741.2787244,0.00014,2]
[341993481,1731348640647,-1097.68307432,0.00014,2]
[341993484,1731348640675,-840529.81563817,0.00014,2]
[341993487,1731348640686,-2709.94494954,0.00014,2]
[341993489,1731348640700,-5197.57096875,0.00014,2]
[341993491,1731348640711,-4583.2606,0.00014,2]
[341993493,1731348640721,-15191.9161489,0.00014,2]
[341993500,1731348640778,-660.6186,0.00014,2]
[341993502,1731348640789,-298.00843,0.00014,2]
[341993504,1731348640801,-318.53,0.00014,2]
[341993507,1731348640819,-2281.39686306,0.00014,2]
[341993510,1731348640831,-475.16803214,0.00014,2]
[341993740,1731348643083,-410.1779957,0.00013999,2]
[341993742,1731348643092,-5839.93620786,0.00014,2]
[341993744,1731348643103,-3063.45044973,0.00014,2]
[341993757,1731348643205,-28584.48530493,0.00014,2]
[341993759,1731348643216,-1820921.44875617,0.00014,2]
[341993761,1731348643227,-2179078.55124383,0.00014,2]
[341993763,1731348643237,-669.74706997,0.00014,2]
[341993766,1731348643248,-382120.07431317,0.00014,2]
[341993768,1731348643259,-4500.13488645,0.00014,2]
[341993780,1731348643362,-20516.84012439,0.00014,2]
[341993782,1731348643373,-4216.15,0.00014,2]
[341993786,1731348643399,-40323.9119648,0.00014,2]
[341993788,1731348643408,-10700.0,0.00014,2]
[341993790,1731348643417,-134845.07507797,0.00014,2]
[341993792,1731348643427,-47692.51541159,0.00014,2]
[341993795,1731348643439,-75335.37822566,0.00014,2]
[341993797,1731348643452,-3184.01,0.00014,2]
[341994071,1731348646114,-204.59512548,0.00013973,2]
[341994074,1731348646124,-6122.99298654,0.00014,2]
[341994078,1731348646136,-524.5410816,0.00014,2]
[341994113,1731348646539,-283.15637927,0.00014,2]
[341994117,1731348646597,-26524.90824523,0.00014,2]
[341994415,1731348691650,500.0,0.00013999,7]
[341994416,1731348692294,500.0,0.00013999,7]
[341994417,1731348692582,500.0,0.00013999,7]
[341994418,1731348692865,500.0,0.00013999,7]
[341994419,1731348693136,500.0,0.00013999,7]
[341994420,1731348693777,500.0,0.00013999,7]
[341994421,1731348694066,342.19529076,0.00013999,7]
[341994422,1731348798179,2000.0,0.0002471,120]
[341994423,1731348802128,500.0,0.00024999,120]
[341994427,1731349062959,10004.0,0.00012,2]
[341994428,1731349094427,1118.26,0.00010973,2]
[341994432,1731349202766,150.0,0.00010973,2]
[341994433,1731349203006,150.0,0.00010973,2]
[341994434,1731349203235,150.0,0.00010973,2]
[341994435,1731349203503,150.0,0.00010973,2]
[341994436,1731349203787,150.0,0.00010973,2]
[341994437,1731349204287,150.0,0.00010973,2]
[341994438,1731349204663,150.0,0.00010973,2]
[341994439,1731349204717,150.0,0.00010973,2]
[341994440,1731349204956,150.0,0.00010973,2]
[341994441,1731349205446,150.0,0.00010973,2]
[341994442,1731349205684,150.0,0.00010973,2]
[341994443,1731349205922,150.0,0.00010973,2]
[341994444,1731349206149,150.0,0.00010973,2]
[341994445,1731349206360,150.0,0.00010973,2]
[341994446,1731349206570,251.16492804,0.00010973,2]
[341994450,1731349571754,385.75,0.00012358,2]
[341994451,1731349576660,988.37,0.00012377,2]
[341994454,1731349629460,1469.409293,0.00012362,2]
[341994464,1731349806035,150.0,0.00012236,2]
[341994465,1731349806332,100.0,0.00012236,2]
[341994466,1731349816319,50.0,0.0001227,2]
[341994467,1731349816345,150.0,0.0001227,2]
[341994468,1731349816369,150.0,0.0001227,2]
[341994469,1731349816393,150.0,0.0001227,2]
[341994470,1731349816415,150.0,0.0001227,2]
[341994471,1731349816437,100.47,0.0001227,2]
[341994484,1731349832317,-629.92537232,0.00012424,2]
[341994485,1731349832546,-370.07462768,0.00012424,2]
[341994486,1731349832555,-151.29556694,0.0001259,2]
[341994487,1731349832564,-250.0,0.00012685,2]
[341994488,1731349832573,-307.92,0.0001272,2]
[341994489,1731349832582,-300.0,0.00012746,2]
[341994490,1731349832591,-150.0,0.00012795,2]
[341994491,1731349832601,-200.0,0.00012836,2]
[341994492,1731349832611,-561.41044052,0.0001285,2]
[341994493,1731349832620,-305.24069953,0.00012935,2]
[341994496,1731349832636,-204.68930047,0.00012935,2]
[341994497,1731349832646,-312.81,0.00012936,2]
[341994499,1731349832654,-1169.96069953,0.00012936,2]
[341994500,1731349832665,-5167.34606299,0.00012936,2]
[341994501,1731349832676,-328.01300429,0.00012936,2]
[341994503,1731349832687,-3912.36023319,0.00012936,2]
[341994505,1731349832696,-150.99,0.00012936,2]
[341994507,1731349832705,-1050.05244855,0.00012959,2]
[341994509,1731349832714,-650.5306887,0.00012964,2]
[341994511,1731349832724,-156.67603372,0.00012964,2]
[341994513,1731349832733,-163.11748153,0.00012973,2]
[341994515,1731349832742,-500.0,0.00012973,2]
[341994517,1731349832751,-160.53239082,0.00012973,2]
[341994519,1731349832761,-500.0,0.00012973,2]
[341994521,1731349832771,-181.68910734,0.0001299,2]
[341994523,1731349832779,-181.68910734,0.0001299,2]
[341994525,1731349832788,-1915.37361458,0.00012996,2]
[341994526,1731349832797,-500.0,0.00012999,2]
[341994527,1731349832807,-207.51910826,0.00012999,2]
[341994528,1731349832816,-500.0,0.00012999,2]
[341994529,1731349832825,-500.0,0.00012999,2]
[341994530,1731349832835,-150.0,0.00012999,2]
[341994531,1731349832844,-500.0,0.00013,2]
[341994532,1731349832855,-59101.60978605,0.00013,2]
[341994533,1731349832904,-8600.325229,0.00013,2]
[341994538,1731349838288,-165.60200628,0.00012964,2]
[341994539,1731349838299,-586.78574312,0.00012973,2]
[341994540,1731349838310,-152066.83819961,0.00013,2]
[341994541,1731349838323,-744.34737672,0.00013,2]
[341994542,1731349838356,-260.86398,0.00013,2]
[341994543,1731349838398,-13865.85778552,0.00013,2]
[341994544,1731349838410,-10301.80611104,0.00013,2]
[341994545,1731349838423,-14109.09441806,0.00013,2]
[341994546,1731349838439,-2107.58668633,0.00013,2]
[341994547,1731349838451,-1989.81484821,0.00013,2]
[341994548,1731349838463,-900.0,0.00013,2]
[341994549,1731349838535,-40925.88201053,0.00013,2]
[341994550,1731349838728,-394.40724,0.00013,2]
[341994551,1731349838741,-1078.29817077,0.00013,2]
[341994564,1731349840311,-801.81421915,0.00013,2]
[341994565,1731349840324,-1157.46453,0.00013,2]
[341994566,1731349840337,-2496.84362045,0.00013,2]
[341994567,1731349840479,-3258.68297604,0.00013,2]
[341994568,1731349840492,-845.32557812,0.00013,2]
[341994569,1731349840509,-1749.84,0.00013,2]
[341994570,1731349840543,-5499.70417204,0.00013,2]
[341994571,1731349840555,-43684.53820685,0.00013,2]
[341994587,1731349843383,-500.0,0.00012973,2]
[341994588,1731349843393,-502.13140192,0.00013,2]
[341994589,1731349843420,-5772.72673387,0.00013,2]
[341994590,1731349843432,-3535.91029418,0.00013,2]
[341994591,1731349843449,-26981.20237637,0.00013,2]
[341994592,1731349843565,-83557.70815662,0.00013,2]
[341994593,1731349843873,-32473.29800589,0.00013,2]
[341994594,1731349843890,-1693.11948,0.00013,2]
[341994595,1731349843902,-1175.09810132,0.00013,2]
[341994596,1731349843928,-54935.52964542,0.00013,2]
[341994608,1731349846507,-844.197141,0.00013,2]
[341994609,1731349846519,-3037.96018175,0.00013,2]
[341994610,1731349852726,150.0,0.00010185,2]
[341994613,1731349927715,1062.34,0.00010765,2]
[341994646,1731350628814,375.23,0.00012396,2]
[341994648,1731350733059,1009.22,0.00010423,2]
[341994652,1731350962053,11800.12,0.00012329,2]
[341994654,1731350984731,5241.0,0.000123,2]
[341994655,1731350993932,300.0,0.00012315,2]
[341994663,1731351005885,707.39,0.00012398,2]
[341994688,1731351031487,-1000.0,0.000125,2]
[341994689,1731351031496,-383.95,0.00012531,2]
[341994690,1731351031506,-250.0,0.00012579,2]
[341994691,1731351031515,-279.88,0.00012588,2]
[341994692,1731351031524,-2776.74598988,0.00012637,2]
[341994693,1731351031535,-851.74008,0.00012637,2]
[341994694,1731351031546,-8171.63393012,0.00012637,2]
[341994695,1731351031555,-1009.22,0.00012687,2]
[341994696,1731351031565,-150.0,0.00012899,2]
[341994697,1731351031574,-7885.0382,0.000129,2]
[341994698,1731351031583,-13089.1643,0.000129,2]
[341994699,1731351031593,-5791.9621,0.000129,2]
[341994700,1731351031602,-374.5752,0.000129,2]
[341994701,1731351031611,-1301.2541,0.000129,2]
[341994702,1731351031620,-1060.0477,0.000129,2]
[341994703,1731351031629,-156.67603372,0.000129,2]
[341994704,1731351031638,-161.2917664,0.00012929,2]
[341994705,1731351031648,-160.4016009,0.00012929,2]
[341994706,1731351031657,-11800.12,0.00012945,2]
[341994707,1731351031666,-1379.81316161,0.00012989,2]
[341994708,1731351031675,-1602.43,0.00012989,2]
[341994709,1731351031685,-181.68910736,0.0001299,2]
[341994710,1731351031694,-150.0,0.00012999,2]
[341994711,1731351031703,-29999.99,0.00012999,2]
[341994712,1731351031712,-273.02,0.00012999,2]
[341994713,1731351031721,-320353.03501373,0.00013,2]
[341994714,1731351031734,-849.92646,0.00013,2]
[341994715,1731351031745,-76775.34536778,0.00013,2]
[341994716,1731351031756,-21354.1282633,0.00013,2]
[341994717,1731351031783,-3516.17829719,0.00013,2]
[341994718,1731351031807,-42654.6618096,0.00013,2]
[341994719,1731351031829,-2605.43964008,0.00013,2]
[341994720,1731351031973,-3774.68287368,0.00013,2]
[341994723,1731351031987,-1658.17802443,0.00013,2]
[341994779,1731351037532,-523.86,0.00013,2]
[341994780,1731351037688,-497769.09915809,0.00013,2]
[341994781,1731351037699,-37997.514,0.00013,2]
[341994782,1731351037773,-43876.63800879,0.00013,2]